bitfinex-derivatives/quotes_ETHF0:USTF0_20210703
["timestamp","ask_amount","ask_price","bid_price","bid_amount"]
[1625334909645,2.20527,2224.3,2224.2,2.20527]
[1625334909744,2.20527,2224.3,2224.2,3.20527]
[1625334910158,2.20527,2224.3,2224.2,2.20527]
[1625334910864,2.20527,2224.3,2224.2,3.20527]
[1625334911275,2.20527,2224.3,2224.2,2.20527]
[1625334912176,2.20527,2224.3,2224.2,3.20527]
[1625334920543,2.20527,2224.3,2224.2,2.20527]
[1625334920642,2.20527,2224.3,2224.2,3.20527]
[1625334920992,2.20527,2224.3,2224.2,2.20527]
[1625334921792,2.20527,2224.3,2224.2,3.20527]
[1625334922942,2.20527,2224.3,2224.2,2.20527]
[1625334923243,5.95847,2224.3,2224.2,0.65337]
[1625334923347,7.28455598,2224.3,2224.2,0.65337]
[1625334923797,5.95847,2224.3,2224.2,0.65337]
[1625334924597,7.28428841,2224.3,2224.2,0.65337]
[1625334928058,5.95847,2224.3,2224.2,0.65337]
[1625334929917,5.95847,2224.3,2224.2,3.63197]
[1625334930020,5.95847,2224.3,2224.2,4.63197]
[1625334935948,3.7532,2224.3,2224.2,4.63197]
[1625334936047,1.32439686,2224.8,2224.2,4.63197]
[1625334936349,15.80788155,2225.2,2224.2,4.63197]
[1625334937456,2.20527,2224.8,2224.2,4.63197]
[1625334939410,4.41054,2224.8,2224.7,2.20527]
[1625334941529,5.73486833,2224.8,2223.3,1.0]
[1625334941628,8.41366833,2224.8,2223.3,1.0]
[1625334942032,1.32440763,2224.7,2223.3,1.0]
[1625334942229,2.22180763,2224.7,2223.3,1.0]
[1625334943438,2.20527,2224.0,2223.9,2.20527]
[1625334943534,1.20527,2224.0,2223.9,2.20527]
[1625334944348,2.20527,2224.0,2223.9,2.20527]
[1625334945047,1.20527,2224.0,2223.9,2.20527]
[1625334950059,16.2108,2225.0,2223.9,2.20527]
[1625334951562,2.20527,2224.8,2224.7,2.20527]
[1625334952470,1.32418807,2225.1,2224.7,2.20527]
[1625334952621,1.32418807,2225.1,2224.7,5.68037]
[1625334952970,2.32418807,2225.1,2224.7,5.68037]
[1625334953223,1.0,2225.1,2224.7,5.68037]
[1625334953479,3.20527,2225.1,2225.0,2.20527]
[1625334954633,2.20527,2225.1,2225.0,2.20527]
[1625334954881,3.52967943,2225.3,2225.0,2.20527]
[1625334955284,2.20527,2225.3,2225.0,2.20527]
[1625334955584,2.20527,2225.3,2225.2,5.96317]
[1625334955684,3.20527,2225.3,2225.2,5.96317]
[1625334958201,3.20527,2225.3,2225.2,3.7579]
[1625334960305,3.20527,2225.3,2225.0,2.20527]
[1625334960306,4.52984928,2225.3,2225.0,2.20527]
[1625334960756,1.32463241,2225.2,2225.0,2.20527]
[1625334960856,1.0,2225.1,2225.0,2.20527]
[1625334961461,2.85461691,2225.1,2225.0,2.20527]
[1625334961610,5.05988691,2225.1,2225.0,2.20527]
[1625334962908,5.85506843,2225.1,2225.0,2.20527]
[1625334966068,5.06050864,2225.1,2225.0,2.20527]
[1625334966769,4.53049119,2225.1,2225.0,2.20527]
[1625334968131,3.53049119,2225.1,2225.0,2.20527]
[1625334968280,2.20527,2225.1,2225.0,5.60747]
[1625334968428,1.32527547,2225.2,2225.0,5.60747]
[1625334968542,1.32520144,2225.4,2225.0,5.60747]
[1625334969644,1.32520144,2225.4,2225.3,2.20527]
[1625334969844,8.28972798,2225.5,2225.3,2.20527]
[1625334970145,6.08445798,2225.5,2225.3,2.20527]
[1625334971704,6.08445798,2225.5,2225.4,2.20527]
[1625334972006,1.32545798,2225.5,2225.4,2.20527]
[1625334973316,1.32554657,2225.6,2225.4,2.20527]
[1625334975318,1.85572108,2225.8,2225.4,2.20527]
[1625334975319,1.32553834,2225.7,2225.4,2.20527]
[1625334975719,1.32553834,2225.7,2225.6,2.20527]
[1625334975817,1.85572108,2225.8,2225.6,2.20527]
[1625334975818,1.32557127,2225.8,2225.6,2.20527]
[1625334979786,2.20527,2225.7,2225.6,2.20527]
[1625334979887,3.53063156,2225.7,2225.6,2.20527]
[1625334980138,2.20527,2225.7,2225.6,2.20527]
[1625334981745,3.20527,2225.7,2225.6,2.20527]
[1625334981944,4.53055306,2225.7,2225.6,2.20527]
[1625334982345,3.53055306,2225.7,2225.6,2.20527]
[1625334982507,4.53055306,2225.7,2225.6,2.20527]
[1625334982899,3.53055306,2225.7,2225.6,2.20527]
[1625334983948,2.20527,2225.7,2225.6,2.20527]
[1625334986253,2.32519467,2225.8,2225.6,2.20527]
[1625334986653,2.32519467,2225.8,2225.6,4.59097]
[1625334986756,1.32519467,2225.8,2225.6,4.59097]
[1625334986955,1.85521028,2225.9,2225.6,4.59097]
[1625334986956,1.32489631,2225.9,2225.6,4.59097]
[1625334987406,1.32472424,2226.2,2225.6,4.59097]
[1625334987856,16.96137,2226.4,2226.1,7.92474]
[1625334988311,1.32468125,2226.2,2226.1,7.92474]
[1625334988611,1.32423026,2226.3,2226.1,7.92474]
[1625334990716,3.5290496,2226.4,2226.1,7.92474]
[1625334993920,4.5290496,2226.4,2226.1,7.92474]
[1625334994219,3.5290496,2226.4,2226.1,7.92474]
[1625334995374,2.20527,2226.4,2226.1,7.92474]
[1625335002550,5.19607,2226.4,2226.1,7.92474]
[1625335002648,6.19607,2226.4,2226.1,4.41054]
[1625335002914,6.19607,2226.4,2224.7,14.9333]
[1625335003265,7.51794497,2226.4,2224.7,14.9333]
[1625335003816,7.51794497,2226.4,2225.6,2.20527]
[1625335003917,4.72257,2225.9,2225.6,2.20527]
[1625335004266,5.72257,2225.9,2225.6,2.20527]
[1625335005873,2.20527,2225.7,2225.6,2.20527]
[1625335005976,3.20527,2225.7,2225.6,2.20527]
[1625335009885,3.20527,2225.7,2224.7,17.13857]
[1625335011906,3.20527,2225.7,2225.2,2.20527]
[1625335013907,2.20527,2225.3,2225.2,2.20527]
[1625335014009,5.95167,2225.3,2225.2,2.20527]
[1625335016863,6.95167,2225.3,2225.2,2.20527]
[1625335017162,6.95167,2225.3,2224.7,2.20527]
[1625335017978,4.41054,2224.8,2224.7,2.20527]
[1625335018083,7.15734,2224.8,2224.7,2.20527]
[1625335022837,7.15734,2224.8,2224.7,3.11227]
[1625335022936,7.15734,2224.8,2224.7,2.20527]
[1625335024037,2.7468,2224.8,2224.7,2.20527]
[1625335024137,4.7464,2225.3,2224.7,2.20527]
[1625335025996,6.95167,2225.3,2225.0,2.20527]
[1625335026896,8.27581235,2225.3,2225.0,2.20527]
[1625335027045,9.16121235,2225.3,2225.0,2.20527]
[1625335027201,9.16121235,2225.3,2224.7,2.20527]
[1625335027699,1.32424477,2225.2,2224.7,2.20527]
[1625335027801,1.0,2225.1,2224.7,2.20527]
[1625335028003,4.41054,2224.8,2224.7,2.20527]
[1625335028102,8.79334,2224.8,2224.7,2.20527]
[1625335029360,7.79334,2224.8,2224.7,2.20527]
[1625335029714,8.79334,2224.8,2224.7,2.20527]
[1625335030012,7.79334,2224.8,2224.7,2.20527]
[1625335032018,3.3828,2224.8,2224.7,2.20527]
[1625335032624,1.0,2225.2,2224.7,2.20527]
[1625335033982,2.20527,2225.1,2225.0,2.20527]
[1625335034134,6.04027,2225.1,2225.0,2.20527]
[1625335034685,5.04027,2225.1,2225.0,2.20527]
[1625335035236,2.20527,2225.1,2225.0,2.20527]
[1625335035438,1.32479453,2225.5,2225.0,2.20527]
[1625335035537,1.32479453,2225.5,2225.0,4.96027]
[1625335035889,7.08377416,2225.7,2225.0,4.96027]
[1625335036087,4.53004416,2225.7,2225.6,4.41054]
[1625335036289,3.53004416,2225.7,2225.6,4.41054]
[1625335036840,4.53004416,2225.7,2225.6,4.41054]
[1625335037298,3.20527,2225.7,2225.6,4.41054]
[1625335037594,5.06053011,2225.7,2225.6,4.41054]
[1625335037742,5.06053011,2225.7,2224.3,3.6111]
[1625335038144,2.20527,2225.4,2225.2,2.20527]
[1625335038299,3.20527,2225.4,2225.2,2.20527]
[1625335040162,2.20527,2225.4,2225.2,2.20527]
[1625335041018,3.20527,2225.4,2225.2,2.20527]
[1625335041569,1.32589658,2225.3,2225.2,2.20527]
[1625335041666,5.68249658,2225.3,2224.9,2.20527]
[1625335042066,2.20527,2225.0,2224.9,2.20527]
[1625335042165,3.20527,2225.0,2224.9,2.20527]
[1625335043316,4.53136566,2225.0,2224.9,2.20527]
[1625335046226,3.20527,2225.0,2224.9,2.20527]
[1625335051183,6.62527,2225.0,2223.8,1.31334435]
[1625335051587,7.95122905,2225.0,2223.7,16.76991029]
[1625335051787,7.95122905,2225.0,2223.9,0.13322292]
[1625335052136,2.20527,2224.5,2224.4,2.20527]
[1625335054096,3.20527,2224.5,2224.4,2.20527]
[1625335054197,5.41054,2224.5,2224.4,2.20527]
[1625335054598,5.41054,2224.5,2223.7,15.4555]
[1625335054946,5.41054,2224.5,2223.6,1.31382992]
[1625335055095,5.41054,2224.5,2223.8,0.13322679]
[1625335055446,5.41054,2224.5,2223.7,0.13322821]
[1625335056148,3.20527,2224.5,2224.3,2.20527]
[1625335056703,2.20527,2224.5,2224.3,5.17077]
[1625335056952,1.0,2224.8,2224.3,5.17077]
[1625335057205,1.3262039,2224.9,2224.3,5.17077]
[1625335057714,1.32610523,2225.0,2224.3,5.17077]
[1625335058165,3.53137523,2225.0,2224.7,2.20527]
[1625335059325,2.20527,2225.0,2224.7,2.20527]
[1625335059822,3.53129626,2225.0,2224.7,2.20527]
[1625335060121,3.53129626,2225.0,2224.8,2.20527]
[1625335060574,2.20527,2225.0,2224.8,4.59597]
[1625335060678,1.32589412,2225.1,2224.8,4.59597]
[1625335060977,3.53106313,2225.3,2224.8,4.59597]
[1625335061329,2.20527,2225.3,2224.8,4.59597]
[1625335062181,2.20527,2225.3,2225.2,2.20527]
[1625335066094,6.08477112,2225.5,2225.2,2.20527]
[1625335066246,5.069e-05,2225.6,2225.4,2.20527]
[1625335066343,5.069e-05,2225.6,2225.4,5.21847]
[1625335066553,2.65078288,2226.5,2225.4,5.21847]
[1625335066698,2.65078288,2226.5,2225.5,0.1331502]
[1625335066894,17.31551482,2226.7,2225.5,0.1331502]
[1625335067298,1.0,2226.6,2225.5,0.1331502]
[1625335067700,3.6496,2226.6,2225.5,0.1331502]
[1625335068049,2.65034136,2226.5,2225.5,0.1331502]
[1625335068148,1.0,2226.4,2225.5,0.1331502]
[1625335068300,1.0,2226.4,2226.3,4.41054]
[1625335068404,3.6503741,2226.4,2226.3,4.41054]
[1625335069006,1.0,2226.4,2226.3,4.41054]
[1625335069253,4.8555312,2226.5,2226.3,4.41054]
[1625335069354,5.8555312,2226.5,2226.3,4.41054]
[1625335070823,4.8555312,2226.5,2226.3,4.41054]
[1625335070922,5.8555312,2226.5,2226.3,4.41054]
[1625335071175,3.20527,2226.5,2226.3,4.41054]
[1625335073937,5.85420786,2226.5,2224.6,17.63645461]
[1625335074034,10.61320786,2226.5,2224.6,17.63645461]
[1625335074185,2.20527,2225.5,2225.4,2.20527]
[1625335074289,5.75177,2225.5,2225.4,2.20527]
[1625335075791,5.75177,2225.5,2224.6,15.0183]
[1625335076091,5.75177,2225.5,2223.6,2.62491322]
[1625335076190,2.20527,2225.0,2224.9,2.20527]
[1625335076290,3.20527,2225.0,2224.9,2.20527]
[1625335076441,6.28277,2225.0,2224.9,2.20527]
[1625335078246,8.48804,2225.0,2224.9,2.20527]
[1625335082152,7.48804,2225.0,2224.9,2.20527]
[1625335082253,8.48804,2225.0,2224.9,2.20527]
[1625335082351,7.48804,2225.0,2224.9,2.20527]
[1625335083858,8.48804,2225.0,2224.9,2.20527]
[1625335088268,7.48804,2225.0,2224.9,2.20527]
[1625335088369,8.48804,2225.0,2224.9,2.20527]
[1625335088469,7.48804,2225.0,2224.9,2.20527]
[1625335089321,8.48804,2225.0,2224.9,2.20527]
[1625335089422,7.48804,2225.0,2224.9,2.20527]
[1625335090485,8.48804,2225.0,2224.9,2.20527]
[1625335095751,7.48804,2225.0,2224.9,2.20527]
[1625335096603,8.48804,2225.0,2224.9,2.20527]
[1625335101413,7.48804,2225.0,2224.9,2.20527]
[1625335101617,8.48804,2225.0,2224.9,2.20527]
[1625335102866,7.48804,2225.0,2224.9,2.20527]
[1625335103470,8.48804,2225.0,2224.9,2.20527]
[1625335106038,7.48804,2225.0,2224.9,2.20527]
[1625335106695,3.65355091,2225.3,2224.9,2.20527]
[1625335106793,2.65355091,2225.3,2224.9,2.20527]
[1625335107194,2.65333508,2225.6,2224.9,2.20527]
[1625335107895,3.65316733,2225.7,2224.9,2.20527]
[1625335108402,3.65316733,2225.7,2225.6,2.20527]
[1625335108551,3.65316733,2225.7,2225.6,5.62417]
[1625335109355,2.65316733,2225.7,2225.6,5.62417]
[1625335109606,5.65438753,2225.9,2225.6,5.62417]
[1625335109607,2.65299493,2225.8,2225.6,5.62417]
[1625335110506,1.0,2225.7,2225.6,5.62417]
[1625335110910,3.6531071,2225.7,2225.6,5.62417]
[1625335111858,2.6531071,2225.7,2225.6,5.62417]
[1625335112160,2.65291266,2225.8,2225.6,5.62417]
[1625335113359,4.44878645,2226.0,2225.6,5.62417]
[1625335113360,2.65277812,2225.9,2225.6,5.62417]
[1625335114411,4.85804812,2225.9,2225.8,2.20527]
[1625335114514,5.85804812,2225.9,2225.8,2.20527]
[1625335115015,3.20527,2225.9,2225.8,2.20527]
[1625335117321,6.65369403,2225.9,2225.8,2.20527]
[1625335117819,3.20527,2225.9,2225.8,2.20527]
[1625335118271,6.65364571,2225.9,2225.8,2.20527]
[1625335118974,3.20527,2225.9,2225.8,2.20527]
[1625335122094,3.20527,2225.9,2225.6,2.20527]
[1625335122596,2.65258933,2225.8,2225.6,2.20527]
[1625335122693,1.0,2225.7,2225.6,2.20527]
[1625335127555,4.85768377,2225.9,2225.6,2.20527]
[1625335127756,1.0,2225.8,2225.6,2.20527]
[1625335128005,4.85768377,2225.9,2225.6,2.20527]
[1625335129811,2.20527,2225.9,2225.6,2.20527]
[1625335130563,3.20527,2225.9,2225.6,2.20527]
[1625335131113,2.20527,2225.9,2225.6,2.20527]
[1625335133717,3.20527,2225.9,2225.6,2.20527]
[1625335134117,2.20527,2225.9,2224.7,2.4967]
[1625335134219,2.20527,2225.9,2224.3,2.61941527]
[1625335134370,3.20527,2225.9,2224.4,0.19363459]
[1625335134518,3.20527,2225.9,2225.8,2.20527]
[1625335134620,2.20527,2225.9,2225.8,2.20527]
[1625335139766,3.20527,2225.9,2225.8,2.20527]
[1625335139867,2.20527,2225.9,2225.8,2.20527]
[1625335147521,2.20527,2225.9,2225.8,5.65517]
[1625335149678,18.47817,2226.1,2225.8,5.65517]
[1625335150580,20.68344,2226.1,2225.8,5.65517]
[1625335152388,23.3351322,2226.1,2225.8,5.65517]
[1625335154213,20.68344,2226.1,2225.8,5.65517]
[1625335155217,23.33512609,2226.1,2225.8,5.65517]
[1625335157721,20.68344,2226.1,2225.8,5.65517]
[1625335158527,23.33523609,2226.1,2225.8,5.65517]
[1625335159176,20.68344,2226.1,2225.8,5.65517]
[1625335159882,23.33553801,2226.1,2225.8,5.65517]
[1625335163803,2.65264527,2226.0,2225.8,5.65517]
[1625335163899,1.0,2225.9,2225.8,5.65517]
[1625335171783,3.7629,2225.9,2225.8,5.65517]
[1625335172445,3.7629,2225.9,2225.8,2.20527]
[1625335180313,1.0,2225.9,2225.8,5.79987]
[1625335180715,2.65303172,2226.0,2225.8,5.79987]
[1625335181217,1.0,2226.3,2225.8,5.79987]
[1625335181820,2.65401353,2226.1,2225.8,5.79987]
[1625335181920,3.65401353,2226.1,2225.8,5.79987]
[1625335182079,2.65401353,2226.1,2225.8,5.79987]
[1625335182518,2.65393374,2226.2,2225.8,5.79987]
[1625335182619,3.65393374,2226.2,2225.8,5.79987]
[1625335182868,3.65393374,2226.2,2226.1,2.20527]
[1625335183019,1.0,2226.2,2226.1,2.20527]
[1625335183476,3.65418825,2226.2,2226.1,2.20527]
[1625335183577,2.65418825,2226.2,2226.1,2.20527]
[1625335184377,2.65413347,2226.3,2226.1,2.20527]
[1625335184879,4.85940347,2226.3,2226.1,2.20527]
[1625335185629,5.85940347,2226.3,2226.1,2.20527]
[1625335186181,2.65432432,2226.2,2226.1,2.20527]
[1625335186382,4.85959018,2226.3,2226.1,2.20527]
[1625335187381,5.85959018,2226.3,2226.1,2.20527]
[1625335187732,2.65443065,2226.2,2226.1,2.20527]
[1625335187834,3.65443065,2226.2,2226.1,2.20527]
[1625335188333,1.0,2226.2,2226.1,2.20527]
[1625335188934,4.4517659,2226.2,2226.1,2.20527]
[1625335189586,3.4517659,2226.2,2226.1,2.20527]
[1625335190096,2.65513231,2226.2,2226.1,2.20527]
[1625335193076,1.0,2226.3,2226.1,2.20527]
[1625335194578,4.4528807,2226.3,2226.1,2.20527]
[1625335195933,4.4528807,2226.3,2225.0,2.62404097]
[1625335196030,7.5379807,2226.3,2225.0,2.62404097]
[1625335196133,5.0,2226.2,2225.0,2.62404097]
[1625335196231,1.0,2226.1,2225.0,2.62404097]
[1625335196581,1.0,2226.1,2225.0,2.18934097]
[1625335196734,2.6575363,2225.2,2224.2,1.74001294]
[1625335196832,1.0,2225.1,2224.2,1.74001294]
[1625335196933,2.20527,2224.6,2224.5,2.20527]
[1625335197034,5.83967,2224.6,2224.5,2.20527]
[1625335197132,6.83967,2224.6,2224.5,2.20527]
[1625335197232,7.73437,2224.6,2224.5,2.20527]
[1625335197334,6.83967,2224.6,2224.5,2.33849329]
[1625335197636,6.83967,2224.6,2223.8,3.42192354]
[1625335197736,6.83967,2224.6,2223.6,14.7787]
[1625335197935,6.83967,2224.6,2223.3,3.42409637]
[1625335198442,6.83967,2224.6,2223.4,0.13325421]
[1625335198691,3.45581025,2224.5,2223.4,0.13325421]
[1625335198840,2.1,2224.4,2223.4,0.13325421]
[1625335198939,4.41054,2223.5,2223.4,0.13325421]
[1625335199039,7.28734,2223.5,2223.4,0.13325421]
[1625335199290,7.28734,2223.5,2223.2,0.13327015]
[1625335200343,7.28734,2223.5,2223.1,2.20527]
[1625335200744,7.28734,2223.5,2223.2,0.1332628]
[1625335200843,2.20527,2223.5,2223.2,0.1332628]
[1625335200944,2.20527,2223.5,2223.4,2.20527]
[1625335201497,2.20527,2223.9,2223.4,2.33851536]
[1625335201805,2.20527,2223.9,2223.5,0.13324168]
[1625335202999,5.13588264,2225.2,2223.5,0.13324168]
[1625335203000,2.20527,2224.1,2223.8,4.57137]
[1625335204968,2.20527,2224.4,2224.0,2.20527]
[1625335205173,1.0,2225.0,2224.0,2.20527]
[1625335205276,1.0,2225.0,2224.1,0.13322564]
[1625335205374,3.4479716,2225.2,2224.1,0.13322564]
[1625335205472,3.44740426,2225.6,2224.1,0.13322564]
[1625335205675,1.0,2225.5,2224.1,0.13322564]
[1625335206177,4.5623,2225.5,2224.1,0.13322564]
[1625335206275,5.0,2225.4,2224.1,0.13322564]
[1625335206376,1.0,2225.3,2224.1,0.13322564]
[1625335206525,1.1,2225.2,2223.6,3.41153605]
[1625335206625,1.0,2225.1,2223.6,3.41153605]
[1625335206724,2.1,2225.1,2223.6,3.41153605]
[1625335206825,2.1,2225.1,2223.7,0.13324529]
[1625335206980,4.41054,2223.8,2223.7,0.13324529]
[1625335207176,4.41054,2223.8,2223.6,2.20527]
[1625335207324,1.0,2223.7,2223.6,2.20527]
[1625335207424,1.0,2223.7,2222.8,3.41917008]
[1625335207678,1.0,2223.7,2222.4,3.41953898]
[1625335207824,4.41054,2223.8,2222.4,3.41953898]
[1625335207928,4.41054,2223.8,2222.9,0.79960782]
[1625335208277,4.41054,2223.8,2222.6,0.13326752]
[1625335208727,4.41054,2223.8,2222.5,0.79960474]
[1625335208827,4.41054,2223.8,2222.7,0.19295907]
[1625335208978,4.41054,2223.8,2223.5,2.20527]
[1625335212535,4.41054,2223.8,2222.4,2.3502]
[1625335212633,4.41054,2223.8,2222.3,9.49919649]
[1625335212735,4.41054,2223.8,2222.4,0.19272476]
[1625335212935,4.41054,2223.8,2222.4,2.32494101]
[1625335213033,2.20527,2223.3,2223.2,2.20527]
[1625335213537,2.20527,2223.8,2223.2,2.20527]
[1625335213638,2.20527,2223.8,2223.2,5.83207]
[1625335215089,2.20527,2223.8,2223.7,2.20527]
[1625335215540,2.20527,2223.8,2223.7,5.80437]
[1625335217094,2.20527,2223.8,2223.7,8.00964]
[1625335218500,14.1485,2224.7,2223.7,8.00964]
[1625335218805,1.0,2224.6,2223.7,8.00964]
[1625335219152,2.20527,2224.3,2224.2,2.20527]
[1625335222171,3.20527,2224.3,2224.2,2.20527]
[1625335222820,3.20527,2224.3,2223.7,2.20527]
[1625335223120,2.20527,2223.8,2223.7,2.20527]
[1625335225174,2.20527,2224.3,2223.7,5.24687]
[1625335225375,3.20527,2224.3,2223.7,5.24687]
[1625335225876,3.20527,2224.3,2223.7,3.0416]
[1625335226577,3.20527,2224.3,2223.6,2.20527]
[1625335227178,3.20527,2224.3,2223.9,2.20527]
[1625335228390,3.20527,2224.3,2222.3,4.759]
[1625335228690,3.20527,2224.3,2222.4,0.19250525]
[1625335228890,3.20527,2224.3,2222.5,0.13326007]
[1625335228992,3.20527,2224.3,2222.6,0.19250516]
[1625335229193,2.20527,2223.4,2223.3,2.20527]
[1625335231196,3.20527,2223.4,2223.3,2.20527]
[1625335243825,2.20527,2223.4,2223.3,2.20527]
[1625335244326,3.20527,2223.4,2223.3,2.20527]
[1625335244577,2.20527,2223.4,2223.3,2.20527]
[1625335245430,3.20527,2223.4,2223.3,2.20527]
[1625335245533,5.83727,2223.4,2223.3,2.20527]
[1625335245634,5.83727,2223.4,2223.0,2.20527]
[1625335247186,2.20527,2223.1,2223.0,2.20527]
[1625335247289,3.20527,2223.1,2223.0,2.20527]
[1625335264353,3.20527,2223.1,2222.7,2.20527]
[1625335265311,2.20527,2222.8,2222.7,2.20527]
[1625335265409,3.20527,2222.8,2222.7,2.20527]
[1625335265510,6.16337,2222.8,2222.7,2.20527]
[1625335277591,6.16337,2222.8,2222.7,5.79327]
[1625335280953,6.16337,2222.8,2222.7,5.92657244]
[1625335282465,6.16337,2222.8,2222.4,2.20527]
[1625335282615,6.16337,2222.8,2221.9,1.32467322]
[1625335282918,6.16337,2222.8,2221.6,1.3249368]
[1625335283017,6.16337,2222.8,2221.6,1.99155633]
[1625335283117,6.16337,2222.8,2221.7,0.19375789]
[1625335283420,4.41054,2221.8,2221.6,3.5302068]
[1625335283667,7.13964,2221.8,2221.6,2.20527]
[1625335283967,8.13964,2221.8,2221.6,2.20527]
[1625335284118,8.13964,2221.8,2221.7,0.66666995]
[1625335284223,8.13964,2221.8,2221.6,1.48003995]
[1625335284330,8.13964,2221.8,2221.5,2.65820952]
[1625335284420,8.13964,2221.8,2221.3,1.83908868]
[1625335284421,8.13964,2221.8,2221.3,1.32630692]
[1625335284820,8.13964,2221.8,2220.7,4.759]
[1625335285120,8.13964,2221.8,2220.5,3.16904272]
[1625335285270,8.13964,2221.8,2220.6,0.19383825]
[1625335285423,4.41054,2220.7,2220.6,0.19383825]
[1625335285522,5.41054,2220.7,2220.5,4.04781022]
[1625335285628,8.24604,2220.7,2220.5,4.04781022]
[1625335285723,8.24604,2220.7,2220.5,2.20527]
[1625335286475,8.24604,2220.7,2220.3,2.20527]
[1625335286626,8.24604,2220.7,2220.1,1.84406155]
[1625335286976,7.24604,2220.7,2220.1,1.84406155]
[1625335287176,4.41054,2220.7,2220.1,1.84406155]
[1625335287328,4.41054,2220.7,2220.0,0.05]
[1625335287427,3.20527,2220.7,2220.2,2.20527]
[1625335287878,3.20527,2220.7,2220.2,5.84167]
[1625335287981,2.20527,2220.7,2220.2,5.84167]
[1625335288296,3.20527,2220.7,2220.2,5.84167]
[1625335288395,3.20527,2220.7,2220.2,3.6364]
[1625335288546,4.11037,2220.7,2220.2,3.6364]
[1625335288698,3.20527,2220.7,2220.2,3.6364]
[1625335289213,2.20527,2220.7,2220.2,3.6364]
[1625335289454,2.20527,2220.7,2220.6,2.20527]
[1625335289554,1.0,2221.3,2220.6,2.20527]
[1625335289659,14.4116,2222.0,2220.6,2.20527]
[1625335289903,2.75423893,2222.4,2220.6,2.20527]
[1625335290259,7.75423893,2222.4,2220.6,2.20527]
[1625335290357,1.0,2222.3,2220.6,2.20527]
[1625335291056,3.6198,2222.3,2220.6,2.20527]
[1625335291356,8.6198,2222.3,2220.6,2.20527]
[1625335291508,2.20527,2220.7,2220.6,2.20527]
[1625335292767,2.20527,2220.7,2220.4,2.20527]
[1625335293509,2.20527,2220.6,2220.4,2.20527]
[1625335299528,2.20527,2220.6,2220.2,2.20527]
[1625335301281,1.0,2220.5,2220.2,2.20527]
[1625335301480,2.20527,2220.6,2220.2,2.20527]
[1625335301582,2.20527,2220.3,2220.2,2.20527]
[1625335303093,2.20527,2220.3,2220.0,0.05]
[1625335303549,2.20527,2220.3,2220.2,2.20527]
[1625335310624,2.20527,2220.3,2220.0,0.05]
[1625335310722,5.81267,2220.3,2220.0,0.05]
[1625335311581,2.20527,2220.1,2220.0,0.05]
[1625335319260,3.20527,2220.1,2220.0,0.05]
[1625335321319,2.20527,2220.1,2220.0,0.05]
[1625335321620,2.20527,2220.1,2220.0,2.25527]
[1625335324381,2.20527,2220.1,2220.0,5.61837]
[1625335326540,15.4553,2220.9,2220.0,5.61837]
[1625335327687,2.20527,2221.0,2220.8,2.20527]
[1625335328939,1.0,2221.5,2220.8,2.20527]
[1625335329041,30.5063,2222.3,2220.8,2.20527]
[1625335329140,1.0,2221.9,2220.8,2.20527]
[1625335329242,1.1,2221.8,2220.8,2.20527]
[1625335329350,1.0,2221.7,2220.8,2.20527]
[1625335329650,2.20527,2221.2,2221.1,2.20527]
[1625335329749,2.20527,2221.2,2221.1,5.30157]
[1625335330055,30.5063,2222.3,2221.1,5.30157]
[1625335330157,1.0,2222.2,2221.1,5.30157]
[1625335331421,15.5023,2222.3,2221.1,5.30157]
[1625335331625,15.5023,2222.3,2221.1,10.30157]
[1625335331721,15.5023,2222.3,2222.2,2.20527]
[1625335331823,2.20527,2222.5,2222.2,5.18457]
[1625335332622,1.0,2222.4,2222.2,5.18457]
[1625335332972,2.20527,2222.5,2222.2,5.18457]
[1625335333674,1.0,2222.4,2222.2,5.18457]
[1625335335386,1.0,2222.4,2222.2,2.9793]
[1625335336083,1.0,2222.4,2221.7,2.20527]
[1625335337737,2.20527,2221.8,2221.7,2.20527]
[1625335343426,1.0,2222.3,2221.7,2.20527]
[1625335343527,1.0,2222.3,2221.7,5.87757]
[1625335343728,2.20527,2222.2,2222.1,2.20527]
[1625335343830,3.20527,2222.2,2222.1,2.20527]
[1625335344029,2.20527,2222.2,2222.1,2.20527]
[1625335346737,2.20527,2222.4,2222.1,2.20527]
[1625335347186,14.5161,2223.8,2222.1,2.20527]
[1625335347436,14.5161,2223.8,2222.2,16.333286]
[1625335347538,14.5161,2223.8,2222.2,19.095786]
[1625335347788,2.20527,2223.4,2223.2,2.20527]
[1625335347888,3.20527,2223.4,2223.2,5.22417]
[1625335349053,14.5161,2223.8,2223.2,5.22417]
[1625335349152,1.0,2223.7,2223.2,5.22417]
[1625335349760,1.0,2223.7,2223.6,2.20527]
[1625335351476,1.0,2223.7,2223.2,3.0189]
[1625335351675,1.0,2223.7,2222.2,2.7625]
[1625335351776,2.20527,2223.1,2222.8,2.20527]
[1625335351877,3.20527,2223.1,2222.8,2.20527]
[1625335353434,6.14187,2223.1,2222.8,2.20527]
[1625335353634,6.14187,2223.1,2222.6,2.20527]
[1625335353635,6.14187,2223.1,2221.9,14.9062]
[1625335353733,6.14187,2223.1,2221.1,1.30806146]
[1625335353833,2.20527,2222.2,2222.1,2.20527]
[1625335353935,6.69657,2222.2,2222.1,2.20527]
[1625335354488,5.69657,2222.2,2222.1,2.20527]
[1625335354589,6.69657,2222.2,2222.1,2.20527]
[1625335361215,6.69657,2222.2,2220.6,23.1739]
[1625335361828,6.69657,2222.2,2220.7,0.19252707]
[1625335361969,2.20527,2221.7,2221.5,2.20527]
[1625335362072,1.0,2221.6,2221.5,2.20527]
[1625335363168,2.20527,2221.7,2221.5,2.20527]
[1625335363871,5.41054,2221.7,2221.5,2.20527]
[1625335367580,1.0,2221.7,2221.5,2.20527]